[Event "Titled Tuesday Blitz May 4 2021"]
[White "Dimic, Pavle"]
[Black "Sviridova, Vlada"]
[WhiteFideId "937428"]
[BlackFideId "24109606"]
[WhiteElo "2216"]
[BlackElo "2101"]
[Result "1/2-1/2"]
[Round "07"]
[TimeControl "180+1"]
[Date "2021.05.04"]
[WhiteClock "0:00:34"]
[BlackClock "0:00:06"]

1. d4 {[%clk 0:03:00]}  d5 {[%clk 0:03:00]} 2. c4 {[%clk 0:03:00]}  c6 {[%clk 0:03:00]} 3. Nc3 {[%clk 0:03:00]}  Nf6 {[%clk 0:02:59]} 4. e3 {[%clk 0:03:00]}  e6 {[%clk 0:02:59]} 5. Nf3 {[%clk 0:03:00]}  Nbd7 {[%clk 0:02:57]} 6. Bd3 {[%clk 0:03:00]}  dxc4 {[%clk 0:02:56]} 7. Bxc4 {[%clk 0:03:01]}  b5 {[%clk 0:02:57]} 8. Be2 {[%clk 0:03:01]}  Bd6 {[%clk 0:02:57]} 9. O-O {[%clk 0:03:01]}  O-O {[%clk 0:02:56]} 10. e4 {[%clk 0:03:02]}  e5 {[%clk 0:02:54]} 11. Bg5 {[%clk 0:03:00]}  h6 {[%clk 0:02:31]} 12. Bh4 {[%clk 0:02:53]}  exd4 {[%clk 0:02:20]} 13. Nxd4 {[%clk 0:02:50]}  Qc7 {[%clk 0:02:18]} 14. Bg3 {[%clk 0:02:47]}  Bxg3 {[%clk 0:02:16]} 15. hxg3 {[%clk 0:02:48]}  b4 {[%clk 0:02:12]} 16. Na4 {[%clk 0:02:45]}  c5 {[%clk 0:02:12]} 17. Nf5 {[%clk 0:02:42]}  Nxe4 {[%clk 0:02:06]} 18. Bf3 {[%clk 0:02:33]}  Bb7 {[%clk 0:02:01]} 19. Qc2 {[%clk 0:02:30]}  Ndf6 {[%clk 0:01:53]} 20. Rac1 {[%clk 0:02:27]}  Qe5 {[%clk 0:01:44]} 21. g4 {[%clk 0:02:12]}  g6 {[%clk 0:01:09]} 22. Ne3 {[%clk 0:01:22]}  Rac8 {[%clk 0:01:07]} 23. Nc4 {[%clk 0:01:21]}  Qf4 {[%clk 0:01:02]} 24. Qe2 {[%clk 0:01:16]}  Rfe8 {[%clk 0:00:56]} 25. g3 {[%clk 0:01:16]}  Nxg3 {[%clk 0:00:50]} 26. fxg3 {[%clk 0:01:16]}  Qd4+ {[%clk 0:00:10]} 27. Qf2 {[%clk 0:01:15]}  Bxf3 {[%clk 0:00:09]} 28. Qxd4 {[%clk 0:01:13]}  cxd4 {[%clk 0:00:09]} 29. Rxf3 {[%clk 0:01:12]}  Nxg4 {[%clk 0:00:09]} 30. b3 {[%clk 0:01:11]}  Ne3 {[%clk 0:00:07]} 31. Nab2 {[%clk 0:01:07]}  f5 {[%clk 0:00:06]} 32. Nd3 {[%clk 0:01:06]}  a5 {[%clk 0:00:05]} 33. Nxe3 {[%clk 0:01:04]}  dxe3 {[%clk 0:00:04]} 34. Rxc8 {[%clk 0:01:02]}  Rxc8 {[%clk 0:00:04]} 35. Rxe3 {[%clk 0:01:03]}  Rc2 {[%clk 0:00:04]} 36. Re6 {[%clk 0:01:02]}  Kf7 {[%clk 0:00:04]} 37. Ra6 {[%clk 0:01:01]}  Rxa2 {[%clk 0:00:04]} 38. Ne5+ {[%clk 0:01:01]}  Ke8 {[%clk 0:00:04]} 39. Nxg6 {[%clk 0:01:00]}  a4 {[%clk 0:00:04]} 40. bxa4 {[%clk 0:00:59]}  b3 {[%clk 0:00:04]} 41. Rb6 {[%clk 0:00:40]}  b2 {[%clk 0:00:04]} 42. Nh4 {[%clk 0:00:40]}  Ra1+ {[%clk 0:00:03]} 43. Kg2 {[%clk 0:00:40]}  b1=Q {[%clk 0:00:04]} 44. Rxb1 {[%clk 0:00:40]}  Rxb1 {[%clk 0:00:04]} 45. Nxf5 {[%clk 0:00:41]}  h5 {[%clk 0:00:05]} 46. Ng7+ {[%clk 0:00:40]}  Kf7 {[%clk 0:00:05]} 47. Nxh5 {[%clk 0:00:41]}  Ra1 {[%clk 0:00:05]} 48. Nf4 {[%clk 0:00:42]}  Rxa4 {[%clk 0:00:05]} 49. Kf3 {[%clk 0:00:42]}  Kf6 {[%clk 0:00:05]} 50. Kg4 {[%clk 0:00:42]}  Rb4 {[%clk 0:00:05]} 51. Kf3 {[%clk 0:00:42]}  Rb3+ {[%clk 0:00:05]} 52. Kg4 {[%clk 0:00:42]}  Ra3 {[%clk 0:00:05]} 53. Nh3 {[%clk 0:00:39]}  Kg6 {[%clk 0:00:04]} 54. Nf4+ {[%clk 0:00:38]}  Kf6 {[%clk 0:00:04]} 55. Nh5+ {[%clk 0:00:39]}  Kg6 {[%clk 0:00:04]} 56. Kh4 {[%clk 0:00:39]}  Kh7 {[%clk 0:00:04]} 57. g4 {[%clk 0:00:39]}  Kg6 {[%clk 0:00:04]} 58. Nf4+ {[%clk 0:00:39]}  Kf7 {[%clk 0:00:05]} 59. Nh3 {[%clk 0:00:37]}  Ra4 {[%clk 0:00:05]} 60. Ng5+ {[%clk 0:00:36]}  Kg6 {[%clk 0:00:05]} 61. Nf3 {[%clk 0:00:36]}  Ra3 {[%clk 0:00:05]} 62. Ne5+ {[%clk 0:00:36]}  Kf6 {[%clk 0:00:06]} 63. Nc4 {[%clk 0:00:36]}  Rc3 {[%clk 0:00:06]} 64. Nd2 {[%clk 0:00:36]}  Rd3 {[%clk 0:00:05]} 65. Ne4+ {[%clk 0:00:36]}  Kg6 {[%clk 0:00:06]} 66. Nf2 {[%clk 0:00:34]}  Rd2 {[%clk 0:00:06]} 67. Nh3 {[%clk 0:00:35]}  Rh2 {[%clk 0:00:06]} 68. Kg3 {[%clk 0:00:34]} 1/2-1/2


[Site "https://www.chess.com"]

[Event "Titled Tuesday Blitz May 4 2021"]
[White "Donatti, Alvaro"]
[Black "Lonoff, Marc"]
[WhiteFideId "3000303"]
[BlackFideId "2001349"]
[WhiteElo "2138"]
[BlackElo "2185"]
[Result "1-0"]
[Round "07"]
[TimeControl "180+1"]
[Date "2021.05.04"]
[WhiteClock "0:00:51"]
[BlackClock "0:00:12"]

1. e4 {[%clk 0:03:00]}  e6 {[%clk 0:02:59]} 2. d4 {[%clk 0:02:59]}  d5 {[%clk 0:02:59]} 3. e5 {[%clk 0:03:00]}  c5 {[%clk 0:02:58]} 4. c3 {[%clk 0:03:00]}  Nc6 {[%clk 0:02:59]} 5. Nf3 {[%clk 0:02:59]}  Bd7 {[%clk 0:02:56]} 6. Bd3 {[%clk 0:02:56]}  cxd4 {[%clk 0:02:56]} 7. cxd4 {[%clk 0:02:55]}  Qb6 {[%clk 0:02:56]} 8. Nc3 {[%clk 0:02:51]}  Nxd4 {[%clk 0:02:52]} 9. Nxd4 {[%clk 0:02:42]}  Qxd4 {[%clk 0:02:52]} 10. O-O {[%clk 0:02:43]}  a6 {[%clk 0:02:52]} 11. Re1 {[%clk 0:02:39]}  Ne7 {[%clk 0:02:47]} 12. Bg5 {[%clk 0:02:14]}  Nc6 {[%clk 0:02:43]} 13. Qe2 {[%clk 0:02:06]}  h6 {[%clk 0:02:29]} 14. Bd2 {[%clk 0:01:59]}  Be7 {[%clk 0:02:05]} 15. Rad1 {[%clk 0:01:50]}  Qb6 {[%clk 0:01:47]} 16. Qg4 {[%clk 0:01:45]}  g5 {[%clk 0:01:39]} 17. Nxd5 {[%clk 0:01:16]}  exd5 {[%clk 0:01:32]} 18. e6 {[%clk 0:01:16]}  fxe6 {[%clk 0:01:00]} 19. Rxe6 {[%clk 0:01:13]}  Bxe6 {[%clk 0:00:54]} 20. Qxe6 {[%clk 0:01:12]}  Qc7 {[%clk 0:00:39]} 21. Bg6+ {[%clk 0:01:11]}  Kd8 {[%clk 0:00:38]} 22. Bc3 {[%clk 0:00:54]}  d4 {[%clk 0:00:18]} 23. Bxd4 {[%clk 0:00:53]}  Qd6 {[%clk 0:00:12]} 24. Bb6# {[%clk 0:00:51]} 1-0


[Site "https://www.chess.com"]

[Event "Titled Tuesday Blitz May 4 2021"]
[White "Dovbnia, Nikita"]
[Black "Shankovskyi, Andrii"]
[WhiteFideId "54104599"]
[BlackFideId "14121565"]
[WhiteElo "2056"]
[BlackElo "2269"]
[Result "1-0"]
[Round "07"]
[TimeControl "180+1"]
[Date "2021.05.04"]
[WhiteClock "0:02:03"]
[BlackClock "0:00:14"]

1. e4 {[%clk 0:03:00]}  e6 {[%clk 0:02:59]} 2. d4 {[%clk 0:03:00]}  d5 {[%clk 0:02:59]} 3. Nc3 {[%clk 0:03:00]}  Bb4 {[%clk 0:02:57]} 4. e5 {[%clk 0:03:01]}  c5 {[%clk 0:02:56]} 5. a3 {[%clk 0:03:01]}  Bxc3+ {[%clk 0:02:54]} 6. bxc3 {[%clk 0:03:02]}  Ne7 {[%clk 0:02:54]} 7. Qg4 {[%clk 0:03:02]}  cxd4 {[%clk 0:02:52]} 8. cxd4 {[%clk 0:03:01]}  Qc7 {[%clk 0:02:50]} 9. Bd2 {[%clk 0:02:56]}  Nf5 {[%clk 0:02:36]} 10. Bd3 {[%clk 0:02:49]}  O-O {[%clk 0:02:29]} 11. Nf3 {[%clk 0:02:48]}  Nc6 {[%clk 0:02:26]} 12. O-O {[%clk 0:02:48]}  Qb6 {[%clk 0:02:18]} 13. Rfb1 {[%clk 0:02:46]}  Qc7 {[%clk 0:02:08]} 14. c3 {[%clk 0:02:46]}  Bd7 {[%clk 0:01:56]} 15. Ng5 {[%clk 0:02:45]}  h6 {[%clk 0:01:53]} 16. Nf3 {[%clk 0:02:44]}  Rab8 {[%clk 0:01:52]} 17. Nh4 {[%clk 0:02:38]}  Nxh4 {[%clk 0:01:41]} 18. Qxh4 {[%clk 0:02:39]}  Qd8 {[%clk 0:01:30]} 19. Qh5 {[%clk 0:02:35]}  Qe7 {[%clk 0:01:13]} 20. a4 {[%clk 0:02:32]}  a6 {[%clk 0:01:10]} 21. a5 {[%clk 0:02:31]}  Bc8 {[%clk 0:00:56]} 22. Bc1 {[%clk 0:02:30]}  Bd7 {[%clk 0:00:54]} 23. Ba3 {[%clk 0:02:30]}  Qg5 {[%clk 0:00:50]} 24. Qxg5 {[%clk 0:02:26]}  hxg5 {[%clk 0:00:51]} 25. Bxf8 {[%clk 0:02:27]}  Kxf8 {[%clk 0:00:52]} 26. Rb6 {[%clk 0:02:12]}  Na7 {[%clk 0:00:45]} 27. Bxa6 {[%clk 0:02:07]}  Bc6 {[%clk 0:00:39]} 28. Rab1 {[%clk 0:02:05]}  Nc8 {[%clk 0:00:20]} 29. Rxc6 {[%clk 0:02:03]}  bxc6 {[%clk 0:00:17]} 30. Rxb8 {[%clk 0:02:03]}  c5 {[%clk 0:00:15]} 31. Bxc8 {[%clk 0:02:03]}  Ke7 {[%clk 0:00:16]} 32. a6 {[%clk 0:02:03]}  cxd4 {[%clk 0:00:16]} 33. cxd4 {[%clk 0:02:03]}  Kd8 {[%clk 0:00:14]} 34. a7 {[%clk 0:02:03]}  Kc7 {[%clk 0:00:15]} 35. a8=Q {[%clk 0:02:03]}  f5 {[%clk 0:00:15]} 36. Qb7+ {[%clk 0:02:03]}  Kd8 {[%clk 0:00:14]} 37. Bxe6# {[%clk 0:02:03]} 1-0


[Site "https://www.chess.com"]

[Event "Titled Tuesday Blitz May 4 2021"]
[White "Dudzinski, Pawel"]
[Black "Lewtak, Damian"]
[WhiteFideId "1117890"]
[BlackFideId "1141724"]
[WhiteElo "2193"]
[BlackElo "2291"]
[Result "0-1"]
[Round "07"]
[TimeControl "180+1"]
[Date "2021.05.04"]
[WhiteClock "0:00:17"]
[BlackClock "0:00:18"]

1. e4 {[%clk 0:03:00]}  c5 {[%clk 0:02:58]} 2. c4 {[%clk 0:02:59]}  e5 {[%clk 0:02:57]} 3. Nc3 {[%clk 0:02:59]}  d6 {[%clk 0:02:57]} 4. g3 {[%clk 0:02:59]}  Nc6 {[%clk 0:02:57]} 5. Bg2 {[%clk 0:03:00]}  g6 {[%clk 0:02:57]} 6. Rb1 {[%clk 0:03:00]}  Bg7 {[%clk 0:02:57]} 7. Nge2 {[%clk 0:03:01]}  h5 {[%clk 0:02:56]} 8. h3 {[%clk 0:03:00]}  Nd4 {[%clk 0:02:53]} 9. Nxd4 {[%clk 0:02:54]}  exd4 {[%clk 0:02:53]} 10. Nd5 {[%clk 0:02:55]}  Ne7 {[%clk 0:02:53]} 11. d3 {[%clk 0:02:53]}  Nxd5 {[%clk 0:02:53]} 12. cxd5 {[%clk 0:02:49]}  Qa5+ {[%clk 0:02:41]} 13. Bd2 {[%clk 0:02:46]}  Qxa2 {[%clk 0:02:32]} 14. O-O {[%clk 0:02:42]}  Qa6 {[%clk 0:02:29]} 15. b4 {[%clk 0:02:27]}  O-O {[%clk 0:02:01]} 16. bxc5 {[%clk 0:02:26]}  dxc5 {[%clk 0:02:01]} 17. Qb3 {[%clk 0:02:16]}  Rb8 {[%clk 0:01:46]} 18. Bf4 {[%clk 0:02:12]}  Ra8 {[%clk 0:01:41]} 19. Ra1 {[%clk 0:01:59]}  Qf6 {[%clk 0:01:37]} 20. e5 {[%clk 0:01:57]}  Qf5 {[%clk 0:01:36]} 21. d6 {[%clk 0:01:37]}  Bxe5 {[%clk 0:01:22]} 22. Be4 {[%clk 0:01:29]}  Qf6 {[%clk 0:01:17]} 23. Bxe5 {[%clk 0:01:20]}  Qxe5 {[%clk 0:01:17]} 24. Bxg6 {[%clk 0:01:20]}  Be6 {[%clk 0:00:58]} 25. Qxb7 {[%clk 0:01:02]}  fxg6 {[%clk 0:00:55]} 26. Rxa7 {[%clk 0:00:54]}  Rxa7 {[%clk 0:00:52]} 27. Qxa7 {[%clk 0:00:55]}  Qxd6 {[%clk 0:00:49]} 28. Re1 {[%clk 0:00:52]}  Bd7 {[%clk 0:00:40]} 29. h4 {[%clk 0:00:42]}  Kg7 {[%clk 0:00:37]} 30. f4 {[%clk 0:00:32]}  Rf7 {[%clk 0:00:31]} 31. Re5 {[%clk 0:00:30]}  Bf5 {[%clk 0:00:22]} 32. Qxc5 {[%clk 0:00:25]}  Qxc5 {[%clk 0:00:21]} 33. Rxc5 {[%clk 0:00:26]}  Rd7 {[%clk 0:00:21]} 34. Rd5 {[%clk 0:00:17]}  Rxd5 {[%clk 0:00:18]} 0-1


[Site "https://www.chess.com"]

[Event "Titled Tuesday Blitz May 4 2021"]
[White "Eggleston, Thomas A"]
[Black "Batchimeg, Tuvshintugs"]
[WhiteFideId "412139"]
[BlackFideId "4900839"]
[WhiteElo "2174"]
[BlackElo "2295"]
[Result "1-0"]
[Round "07"]
[TimeControl "180+1"]
[Date "2021.05.04"]
[WhiteClock "0:00:46"]
[BlackClock "0:00:23"]

1. e4 {[%clk 0:03:00]}  e6 {[%clk 0:02:58]} 2. d4 {[%clk 0:03:00]}  d5 {[%clk 0:02:58]} 3. e5 {[%clk 0:03:00]}  c5 {[%clk 0:02:58]} 4. c3 {[%clk 0:03:01]}  Nc6 {[%clk 0:02:57]} 5. Nf3 {[%clk 0:03:01]}  f6 {[%clk 0:02:57]} 6. Bd3 {[%clk 0:02:54]}  fxe5 {[%clk 0:02:55]} 7. Nxe5 {[%clk 0:02:53]}  Nxe5 {[%clk 0:02:48]} 8. dxe5 {[%clk 0:02:53]}  g6 {[%clk 0:02:30]} 9. h4 {[%clk 0:02:33]}  Bg7 {[%clk 0:02:27]} 10. h5 {[%clk 0:02:32]}  Bxe5 {[%clk 0:02:05]} 11. hxg6 {[%clk 0:02:17]}  hxg6 {[%clk 0:02:06]} 12. Bxg6+ {[%clk 0:02:14]}  Kd7 {[%clk 0:02:05]} 13. Rxh8 {[%clk 0:02:07]}  Bxh8 {[%clk 0:02:05]} 14. Qh5 {[%clk 0:01:39]}  Ne7 {[%clk 0:02:02]} 15. Bc2 {[%clk 0:01:36]}  Nc6 {[%clk 0:01:08]} 16. Bf4 {[%clk 0:01:12]}  Qf6 {[%clk 0:00:54]} 17. g3 {[%clk 0:01:05]}  b6 {[%clk 0:00:46]} 18. Nd2 {[%clk 0:01:04]}  Ba6 {[%clk 0:00:45]} 19. O-O-O {[%clk 0:01:00]}  Bg7 {[%clk 0:00:43]} 20. Bg5 {[%clk 0:00:55]}  Qxf2 {[%clk 0:00:31]} 21. Ne4 {[%clk 0:00:48]}  Qf7 {[%clk 0:00:23]} 22. Qxf7+ {[%clk 0:00:46]} 1-0


[Site "https://www.chess.com"]

[Event "Titled Tuesday Blitz May 4 2021"]
[White "Elissalt Cardenas, Hector"]
[Black "Wisniowski, Natalie"]
[WhiteFideId "3500632"]
[BlackFideId "30929261"]
[WhiteElo "2212"]
[BlackElo "1702"]
[Result "1-0"]
[Round "07"]
[TimeControl "180+1"]
[Date "2021.05.04"]
[WhiteClock "0:01:07"]
[BlackClock "0:01:01"]

1. d4 {[%clk 0:02:58]}  d5 {[%clk 0:02:59]} 2. c4 {[%clk 0:02:57]}  c6 {[%clk 0:02:58]} 3. cxd5 {[%clk 0:02:55]}  cxd5 {[%clk 0:02:58]} 4. Bf4 {[%clk 0:02:56]}  Nf6 {[%clk 0:02:57]} 5. e3 {[%clk 0:02:57]}  Nc6 {[%clk 0:02:57]} 6. Bd3 {[%clk 0:02:57]}  e6 {[%clk 0:02:57]} 7. Nc3 {[%clk 0:02:55]}  Bd6 {[%clk 0:02:57]} 8. Bxd6 {[%clk 0:02:54]}  Qxd6 {[%clk 0:02:57]} 9. f4 {[%clk 0:02:55]}  O-O {[%clk 0:02:55]} 10. Nf3 {[%clk 0:02:56]}  b6 {[%clk 0:02:51]} 11. Ne5 {[%clk 0:02:50]}  Bb7 {[%clk 0:02:51]} 12. O-O {[%clk 0:02:48]}  Rac8 {[%clk 0:02:48]} 13. Rc1 {[%clk 0:02:46]}  Nb4 {[%clk 0:02:34]} 14. Bb1 {[%clk 0:02:40]}  Ba6 {[%clk 0:02:26]} 15. Rf2 {[%clk 0:02:32]}  Rfd8 {[%clk 0:01:58]} 16. a3 {[%clk 0:02:12]}  Nc6 {[%clk 0:01:58]} 17. Qa4 {[%clk 0:02:12]}  Bb7 {[%clk 0:01:52]} 18. Nb5 {[%clk 0:01:56]}  Qb8 {[%clk 0:01:49]} 19. Rfc2 {[%clk 0:01:52]}  Nxe5 {[%clk 0:01:40]} 20. fxe5 {[%clk 0:01:42]}  Rxc2 {[%clk 0:01:37]} 21. Bxc2 {[%clk 0:01:37]}  Ne4 {[%clk 0:01:34]} 22. Bxe4 {[%clk 0:01:35]}  dxe4 {[%clk 0:01:32]} 23. Qxa7 {[%clk 0:01:30]}  Qxa7 {[%clk 0:01:24]} 24. Nxa7 {[%clk 0:01:29]}  f5 {[%clk 0:01:23]} 25. Rc7 {[%clk 0:01:21]}  Bd5 {[%clk 0:01:22]} 26. Rc8 {[%clk 0:01:18]}  Rxc8 {[%clk 0:01:20]} 27. Nxc8 {[%clk 0:01:18]}  b5 {[%clk 0:01:18]} 28. Ne7+ {[%clk 0:01:15]}  Kf7 {[%clk 0:01:18]} 29. Nxd5 {[%clk 0:01:15]}  exd5 {[%clk 0:01:18]} 30. b3 {[%clk 0:01:16]}  Ke6 {[%clk 0:01:18]} 31. a4 {[%clk 0:01:14]}  bxa4 {[%clk 0:01:16]} 32. bxa4 {[%clk 0:01:14]}  g5 {[%clk 0:01:14]} 33. g3 {[%clk 0:01:12]}  h5 {[%clk 0:01:12]} 34. a5 {[%clk 0:01:11]}  f4 {[%clk 0:01:10]} 35. gxf4 {[%clk 0:01:11]}  gxf4 {[%clk 0:01:10]} 36. exf4 {[%clk 0:01:10]}  e3 {[%clk 0:01:11]} 37. Kf1 {[%clk 0:01:10]}  Kf5 {[%clk 0:01:10]} 38. Ke2 {[%clk 0:01:10]}  Ke4 {[%clk 0:01:10]} 39. e6 {[%clk 0:01:09]}  Kxd4 {[%clk 0:01:10]} 40. e7 {[%clk 0:01:10]}  Kc4 {[%clk 0:01:08]} 41. e8=Q {[%clk 0:01:09]}  d4 {[%clk 0:01:08]} 42. Qe4 {[%clk 0:01:09]}  Kc3 {[%clk 0:01:08]} 43. Qd3+ {[%clk 0:01:08]}  Kb2 {[%clk 0:01:06]} 44. Qxd4+ {[%clk 0:01:09]}  Kc2 {[%clk 0:01:06]} 45. Qxe3 {[%clk 0:01:08]}  h4 {[%clk 0:01:06]} 46. Qc5+ {[%clk 0:01:07]}  Kb2 {[%clk 0:01:05]} 47. Kd2 {[%clk 0:01:07]}  Ka2 {[%clk 0:01:03]} 48. Qb5 {[%clk 0:01:06]}  h3 {[%clk 0:01:02]} 49. Kc2 {[%clk 0:01:07]}  Ka3 {[%clk 0:01:01]} 50. Qb3# {[%clk 0:01:07]} 1-0


[Site "https://www.chess.com"]

[Event "Titled Tuesday Blitz May 4 2021"]
[White "Escobar Forero, Alder"]
[Black "Aliavdin, Nikolai"]
[WhiteFideId "4400801"]
[BlackFideId "13502883"]
[WhiteElo "2513"]
[BlackElo "2268"]
[Result "1/2-1/2"]
[Round "07"]
[TimeControl "180+1"]
[Date "2021.05.04"]
[WhiteClock "0:00:05"]
[BlackClock "0:00:05"]

1. d4 {[%clk 0:03:00]}  Nf6 {[%clk 0:03:00]} 2. Bg5 {[%clk 0:03:01]}  e6 {[%clk 0:02:58]} 3. e4 {[%clk 0:03:01]}  h6 {[%clk 0:02:58]} 4. Bxf6 {[%clk 0:03:01]}  Qxf6 {[%clk 0:02:59]} 5. Nc3 {[%clk 0:03:01]}  d6 {[%clk 0:02:58]} 6. Qd2 {[%clk 0:02:59]}  g5 {[%clk 0:02:57]} 7. O-O-O {[%clk 0:02:55]}  Bg7 {[%clk 0:02:55]} 8. h4 {[%clk 0:02:53]}  Bd7 {[%clk 0:02:48]} 9. Nf3 {[%clk 0:02:41]}  g4 {[%clk 0:02:39]} 10. e5 {[%clk 0:02:36]}  Qe7 {[%clk 0:02:37]} 11. Nh2 {[%clk 0:02:27]}  h5 {[%clk 0:02:36]} 12. f4 {[%clk 0:02:25]}  gxf3 {[%clk 0:02:33]} 13. Nxf3 {[%clk 0:02:25]}  Bh6 {[%clk 0:02:28]} 14. Ng5 {[%clk 0:02:24]}  Nc6 {[%clk 0:02:27]} 15. exd6 {[%clk 0:02:17]}  cxd6 {[%clk 0:02:26]} 16. d5 {[%clk 0:02:17]}  Ne5 {[%clk 0:02:16]} 17. dxe6 {[%clk 0:02:12]}  fxe6 {[%clk 0:02:15]} 18. Qxd6 {[%clk 0:02:08]}  Qxd6 {[%clk 0:02:15]} 19. Rxd6 {[%clk 0:02:09]}  Nf7 {[%clk 0:02:11]} 20. Rd4 {[%clk 0:01:40]}  Nxg5 {[%clk 0:02:08]} 21. hxg5 {[%clk 0:01:41]}  Bxg5+ {[%clk 0:02:09]} 22. Kb1 {[%clk 0:01:41]}  Bf6 {[%clk 0:02:05]} 23. Rc4 {[%clk 0:01:35]}  Bc6 {[%clk 0:02:00]} 24. Ne4 {[%clk 0:01:30]}  O-O-O {[%clk 0:01:57]} 25. Be2 {[%clk 0:01:17]}  Be5 {[%clk 0:01:47]} 26. Rxh5 {[%clk 0:01:12]}  Rxh5 {[%clk 0:01:42]} 27. Bxh5 {[%clk 0:01:12]}  Rh8 {[%clk 0:01:33]} 28. g4 {[%clk 0:01:11]}  Rf8 {[%clk 0:01:33]} 29. c3 {[%clk 0:00:47]}  Rf4 {[%clk 0:01:27]} 30. Nd2 {[%clk 0:00:38]}  Rf2 {[%clk 0:01:26]} 31. Ne4 {[%clk 0:00:21]}  Re2 {[%clk 0:01:15]} 32. Bg6 {[%clk 0:00:21]}  Kc7 {[%clk 0:01:09]} 33. Nc5 {[%clk 0:00:17]}  Bd5 {[%clk 0:00:56]} 34. Ra4 {[%clk 0:00:17]}  Bd6 {[%clk 0:00:42]} 35. Nd3 {[%clk 0:00:17]}  a6 {[%clk 0:00:38]} 36. c4 {[%clk 0:00:14]}  Bc6 {[%clk 0:00:38]} 37. Ra5 {[%clk 0:00:14]}  Rg2 {[%clk 0:00:36]} 38. c5 {[%clk 0:00:13]}  Bh2 {[%clk 0:00:35]} 39. Nb4 {[%clk 0:00:11]}  Rxg4 {[%clk 0:00:32]} 40. Nxc6 {[%clk 0:00:11]}  Kxc6 {[%clk 0:00:23]} 41. Be8+ {[%clk 0:00:11]}  Kc7 {[%clk 0:00:23]} 42. Ra3 {[%clk 0:00:10]}  Bg1 {[%clk 0:00:20]} 43. Rc3 {[%clk 0:00:09]}  Bd4 {[%clk 0:00:20]} 44. Rc2 {[%clk 0:00:09]}  Rg1+ {[%clk 0:00:19]} 45. Rc1 {[%clk 0:00:09]}  Rg2 {[%clk 0:00:19]} 46. Rc2 {[%clk 0:00:09]}  Rg5 {[%clk 0:00:19]} 47. Bf7 {[%clk 0:00:09]}  e5 {[%clk 0:00:18]} 48. b4 {[%clk 0:00:08]}  Rg1+ {[%clk 0:00:18]} 49. Rc1 {[%clk 0:00:08]}  Rg2 {[%clk 0:00:18]} 50. Rc2 {[%clk 0:00:08]}  Rg4 {[%clk 0:00:18]} 51. Bc4 {[%clk 0:00:08]}  e4 {[%clk 0:00:17]} 52. a3 {[%clk 0:00:08]}  e3 {[%clk 0:00:17]} 53. Ka2 {[%clk 0:00:08]}  Rg1 {[%clk 0:00:17]} 54. Re2 {[%clk 0:00:07]}  Rc1 {[%clk 0:00:16]} 55. Bd3 {[%clk 0:00:05]}  Rc3 {[%clk 0:00:16]} 56. Bc2 {[%clk 0:00:06]}  a5 {[%clk 0:00:16]} 57. bxa5 {[%clk 0:00:05]}  Bxc5 {[%clk 0:00:16]} 58. Bb3 {[%clk 0:00:06]}  Kd6 {[%clk 0:00:15]} 59. Kb2 {[%clk 0:00:06]}  Bd4 {[%clk 0:00:16]} 60. Ka2 {[%clk 0:00:06]}  Ke5 {[%clk 0:00:16]} 61. Rh2 {[%clk 0:00:06]}  Rd3 {[%clk 0:00:15]} 62. Bc4 {[%clk 0:00:06]}  Rd1 {[%clk 0:00:14]} 63. Kb3 {[%clk 0:00:05]}  Rb1+ {[%clk 0:00:13]} 64. Ka4 {[%clk 0:00:05]}  Kf4 {[%clk 0:00:11]} 65. a6 {[%clk 0:00:05]}  bxa6 {[%clk 0:00:11]} 66. Bxa6 {[%clk 0:00:06]}  Rb6 {[%clk 0:00:10]} 67. Bb5 {[%clk 0:00:05]}  Kg3 {[%clk 0:00:10]} 68. Rc2 {[%clk 0:00:04]}  Kf3 {[%clk 0:00:09]} 69. Kb4 {[%clk 0:00:03]}  Rb8 {[%clk 0:00:08]} 70. a4 {[%clk 0:00:04]}  Be5 {[%clk 0:00:08]} 71. a5 {[%clk 0:00:04]}  Bd6+ {[%clk 0:00:08]} 72. Ka4 {[%clk 0:00:05]}  Kf4 {[%clk 0:00:08]} 73. a6 {[%clk 0:00:05]}  Be5 {[%clk 0:00:07]} 74. Re2 {[%clk 0:00:04]}  Bd4 {[%clk 0:00:07]} 75. Rc2 {[%clk 0:00:05]}  Ke5 {[%clk 0:00:07]} 76. Rc7 {[%clk 0:00:04]}  Kf4 {[%clk 0:00:07]} 77. Re7 {[%clk 0:00:04]}  Kf3 {[%clk 0:00:06]} 78. Rf7+ {[%clk 0:00:04]}  Kg3 {[%clk 0:00:06]} 79. Rd7 {[%clk 0:00:05]}  Bb6 {[%clk 0:00:05]} 80. Rg7+ {[%clk 0:00:05]}  Kf2 {[%clk 0:00:05]} 81. Rb7 {[%clk 0:00:05]}  Rxb7 {[%clk 0:00:04]} 82. axb7 {[%clk 0:00:05]}  Bc7 {[%clk 0:00:05]} 1/2-1/2


[Site "https://www.chess.com"]

[Event "Titled Tuesday Blitz May 4 2021"]
[White "Fier, Alexandr"]
[Black "Bortnyk, Olexandr"]
[WhiteFideId "2107139"]
[BlackFideId "14120828"]
[WhiteElo "2569"]
[BlackElo "2723"]
[Result "1-0"]
[Round "07"]
[TimeControl "180+1"]
[Date "2021.05.04"]
[WhiteClock "0:01:52"]
[BlackClock "0:00:32"]

1. d4 {[%clk 0:03:00]}  Nf6 {[%clk 0:02:58]} 2. c4 {[%clk 0:03:00]}  b6 {[%clk 0:02:57]} 3. Nc3 {[%clk 0:02:58]}  Bb7 {[%clk 0:02:57]} 4. Qc2 {[%clk 0:02:57]}  d5 {[%clk 0:02:50]} 5. cxd5 {[%clk 0:02:58]}  Nxd5 {[%clk 0:02:51]} 6. e4 {[%clk 0:02:58]}  Nxc3 {[%clk 0:02:50]} 7. bxc3 {[%clk 0:02:59]}  e5 {[%clk 0:02:46]} 8. Nf3 {[%clk 0:02:59]}  exd4 {[%clk 0:02:45]} 9. Bc4 {[%clk 0:03:00]}  Be7 {[%clk 0:02:23]} 10. O-O {[%clk 0:02:57]}  d3 {[%clk 0:02:23]} 11. Bxd3 {[%clk 0:02:56]}  O-O {[%clk 0:02:23]} 12. e5 {[%clk 0:02:56]}  h6 {[%clk 0:02:14]} 13. Be4 {[%clk 0:02:53]}  Qc8 {[%clk 0:02:07]} 14. Bf4 {[%clk 0:02:51]}  Nc6 {[%clk 0:02:06]} 15. Rfe1 {[%clk 0:02:49]}  Nd8 {[%clk 0:02:05]} 16. Nd4 {[%clk 0:02:29]}  Ne6 {[%clk 0:02:00]} 17. Nf5 {[%clk 0:02:28]}  Bc5 {[%clk 0:01:49]} 18. Bxh6 {[%clk 0:02:25]}  gxh6 {[%clk 0:01:45]} 19. Nxh6+ {[%clk 0:02:25]}  Kh8 {[%clk 0:01:45]} 20. Bxb7 {[%clk 0:02:23]}  Qxb7 {[%clk 0:01:43]} 21. Qf5 {[%clk 0:02:23]}  Ng7 {[%clk 0:00:52]} 22. Qh3 {[%clk 0:02:23]}  Qc6 {[%clk 0:00:53]} 23. Ng4+ {[%clk 0:02:20]}  Nh5 {[%clk 0:00:46]} 24. Qxh5+ {[%clk 0:02:16]}  Kg7 {[%clk 0:00:47]} 25. e6 {[%clk 0:01:59]}  fxe6 {[%clk 0:00:31]} 26. Qh6+ {[%clk 0:01:55]}  Kg8 {[%clk 0:00:32]} 27. Qg6+ {[%clk 0:01:53]}  Kh8 {[%clk 0:00:32]} 28. Re5 {[%clk 0:01:52]} 1-0


[Site "https://www.chess.com"]